bitfinex/quotes_BTCUSD_20260117
["timestamp","ask_amount","ask_price","bid_price","bid_amount"]
[1768672832903,0.01054344,95350.0,95346.0,0.06273128]
[1768672833124,5.577e-05,95350.0,95347.0,0.010488]
[1768672834382,5.577e-05,95350.0,95347.0,0.06292753]
[1768672836172,5.577e-05,95350.0,95348.0,0.05243912]
[1768672836731,5.577e-05,95350.0,95349.0,0.05243893]
[1768672837795,5.577e-05,95350.0,95349.0,0.05212474]
[1768672839630,5.577e-05,95350.0,95349.0,0.05192745]
[1768672839827,5.577e-05,95350.0,95348.0,0.05243938]
[1768672840213,5.577e-05,95350.0,95347.0,0.06292792]
[1768672840443,5.577e-05,95350.0,95347.0,0.010488]
[1768672841726,0.06298205,95350.0,95346.0,0.0102908]
[1768672842811,0.01048778,95349.0,95344.0,0.01048833]
[1768672843314,0.01048789,95348.0,95344.0,0.06292986]
[1768672843485,0.010488,95347.0,95342.0,0.01055293]
[1768672843705,0.010488,95347.0,95343.0,0.01048844]
[1768672845480,5.577e-05,95346.0,95343.0,0.01048844]
[1768672846120,5.577e-05,95346.0,95343.0,0.06293066]
[1768672846543,5.577e-05,95346.0,95343.0,0.01048844]
[1768672847284,5.577e-05,95346.0,95344.0,0.05244155]
[1768672847499,5.577e-05,95346.0,95345.0,0.05244113]
[1768672847718,0.01054388,95346.0,95342.0,6.438e-05]
[1768672847929,0.01048822,95345.0,95342.0,6.438e-05]
[1768672848142,5.577e-05,95346.0,95343.0,0.01048844]
[1768672848577,0.01048822,95345.0,95342.0,0.01055293]
[1768672849704,0.01048822,95345.0,95342.0,6.438e-05]
[1768672850543,0.0629294,95345.0,95342.0,6.438e-05]
[1768672850743,0.05244174,95344.0,95342.0,6.438e-05]
[1768672850948,0.010488,95347.0,95342.0,6.438e-05]
[1768672851443,0.01048932,95335.0,95327.0,0.0104902]
[1768672851650,0.01048888,95339.0,95332.0,0.01064675]
[1768672851867,0.01048877,95340.0,95336.0,0.01048921]
[1768672852037,0.12712,95341.0,95337.0,0.0104891]
[1768672852241,0.12712,95341.0,95339.0,0.05244411]
[1768672853054,0.12712,95341.0,95338.0,0.01048899]
[1768672853260,0.12712,95341.0,95338.0,0.06293389]
[1768672853977,5.577e-05,95340.0,95338.0,0.06293389]
[1768672854359,5.577e-05,95340.0,95338.0,0.01048899]
[1768672854739,5.577e-05,95340.0,95339.0,0.05244443]
[1768672854944,5.577e-05,95340.0,95339.0,0.05239911]
[1768672855584,5.577e-05,95340.0,95338.0,0.01048899]
[1768672855793,0.01048778,95349.0,95340.0,0.01048877]
[1768672856147,0.01048778,95349.0,95340.0,0.06293222]
[1768672856148,0.17956059,95346.0,95340.0,0.06293222]
[1768672856751,0.12712,95346.0,95343.0,0.01048844]
[1768672856968,0.12712,95346.0,95343.0,0.0102368]
[1768672857151,0.12712,95346.0,95343.0,0.0626789]
[1768672857390,0.12712,95346.0,95343.0,0.0102368]
[1768672858049,0.13760811,95346.0,95343.0,0.01048844]
[1768672858668,0.19004885,95346.0,95342.0,0.01048855]
[1768672858934,0.01048822,95345.0,95342.0,0.01048855]
[1768672859967,0.01048822,95345.0,95341.0,0.01048866]
[1768672860179,0.13760811,95346.0,95342.0,0.01048855]
[1768672860599,0.13760811,95346.0,95341.0,0.01048866]
[1768672860800,0.01048822,95345.0,95341.0,0.01048866]
[1768672862081,0.010488,95347.0,95343.0,0.01048844]
[1768672863251,0.010488,95347.0,95344.0,0.01048833]
[1768672863461,0.13760789,95348.0,95344.0,0.06292995]
[1768672864506,0.12712,95348.0,95345.0,0.01048822]
[1768672864716,0.12712,95348.0,95344.0,0.03139701]
[1768672865172,0.12712,95348.0,95346.0,0.05244053]
[1768672865397,0.01048723,95354.0,95345.0,0.01048822]
[1768672865623,0.12712,95349.0,95348.0,0.06292737]
[1768672866055,0.01051244,95350.0,95348.0,0.06292737]
[1768672867135,0.01051244,95350.0,95347.0,0.010488]
[1768672867556,0.01051244,95350.0,95348.0,0.05243941]
[1768672868987,0.01051244,95350.0,95348.0,0.05243948]
[1768672869425,0.01051244,95350.0,95349.0,0.05243893]
[1768672869647,6.437e-05,95354.0,95351.0,0.01048756]
[1768672870301,0.12718437,95354.0,95351.0,0.01048756]
[1768672871177,6.437e-05,95354.0,95351.0,0.01048756]
[1768672871409,0.1376716,95354.0,95350.0,0.01048767]
[1768672872374,0.1376716,95354.0,95351.0,0.01048756]
[1768672872904,0.01048734,95353.0,95350.0,0.01048767]
[1768672873404,0.01048745,95352.0,95348.0,0.01048789]
[1768672874076,0.01048745,95352.0,95348.0,0.0629273]
[1768672874360,0.01048745,95352.0,95348.0,0.01048789]
[1768672874569,0.06292492,95352.0,95348.0,0.01048789]
[1768672874944,0.22867265,95368.0,95351.0,0.01048756]
[1768672875106,0.01048701,95356.0,95353.0,0.01048734]
[1768672875305,0.0104869,95357.0,95353.0,0.01048734]
[1768672875703,0.01048701,95356.0,95353.0,0.01048734]
[1768672875912,0.01048712,95355.0,95350.0,0.01048767]
[1768672876112,0.01048734,95353.0,95349.0,0.01048778]
[1768672876510,0.01048745,95352.0,95348.0,0.01048789]
[1768672877068,0.0629248,95352.0,95348.0,0.01048789]
[1768672877624,0.0629248,95352.0,95347.0,0.010488]
[1768672877625,0.01048756,95351.0,95347.0,0.010488]
[1768672877965,0.01048778,95349.0,95346.0,0.01048811]
[1768672878159,0.06292684,95349.0,95345.0,0.01048822]
[1768672878379,0.06292671,95349.0,95345.0,0.01048822]
[1768672878808,0.01048789,95348.0,95345.0,0.01048822]
[1768672879486,0.01048789,95348.0,95343.0,0.06293053]
[1768672879840,0.01048789,95348.0,95343.0,0.0629949]
[1768672880199,0.06292741,95348.0,95343.0,0.0629949]
[1768672880393,0.010488,95347.0,95343.0,0.01055281]
[1768672880604,0.010488,95347.0,95343.0,0.06299502]
[1768672881279,0.01048778,95349.0,95344.0,0.01048833]
[1768672881489,0.01048778,95349.0,95344.0,0.06292958]
[1768672881727,0.01048778,95349.0,95345.0,0.05244112]
[1768672882152,0.01048778,95349.0,95345.0,0.06292934]
[1768672882361,0.06292676,95349.0,95345.0,0.01048822]
[1768672882569,0.01048778,95349.0,95345.0,0.01048822]
[1768672883566,0.01048745,95352.0,95347.0,0.010488]
[1768672883969,0.05243797,95351.0,95347.0,0.010488]
[1768672884653,0.01048767,95350.0,95347.0,0.010488]
[1768672885076,0.01048767,95350.0,95345.0,0.0629288]
[1768672885692,0.01048767,95350.0,95346.0,0.01048811]
[1768672886523,0.01048778,95349.0,95346.0,0.01048811]
[1768672887791,0.01048767,95350.0,95346.0,0.06292858]
[1768672887979,0.01048767,95350.0,95346.0,0.01048811]
[1768672889026,0.06292721,95349.0,95344.0,0.01048833]
[1768672889259,0.010488,95347.0,95343.0,0.01055281]
[1768672889464,0.0629281,95347.0,95343.0,0.01055281]
[1768672890071,0.01048778,95349.0,95345.0,0.01048822]
[1768672891281,0.01048789,95348.0,95345.0,0.01048822]
[1768672892601,0.06292738,95348.0,95343.0,0.0629949]
[1768672893265,0.06292738,95348.0,95343.0,0.01055281]
[1768672894347,0.01048789,95348.0,95344.0,0.01048833]
[1768672895802,0.01048789,95348.0,95344.0,0.06292995]
[1768672896942,0.01048789,95348.0,95344.0,0.01048833]
[1768672897425,0.010488,95347.0,95344.0,0.01048833]
[1768672899511,0.01048778,95349.0,95345.0,0.01048822]
[1768672901499,0.06292678,95349.0,95345.0,0.01048822]
[1768672901697,0.010488,95347.0,95343.0,0.01055281]
[1768672902423,0.01048811,95346.0,95343.0,0.01055281]
[1768672905480,0.01048811,95346.0,95343.0,6.437e-05]
[1768672905686,0.22996938,95345.0,95341.0,0.01048866]
[1768672906105,0.06293005,95344.0,95340.0,0.01048877]
[1768672906535,0.06293005,95344.0,95336.0,0.03769788]
[1768672906536,0.01048943,95334.0,95327.0,0.04818808]
[1768672906774,0.01048987,95330.0,95327.0,5.446e-05]
[1768672907170,0.06293941,95330.0,95327.0,2e-06]
[1768672908022,0.01048987,95330.0,95327.0,2e-06]
[1768672908685,0.01048987,95330.0,95323.0,0.0001571]
[1768672908686,0.22997147,95326.0,95323.0,0.0001571]
[1768672908900,0.01049141,95316.0,95313.0,1e-08]
[1768672909378,0.06294863,95316.0,95313.0,1e-08]
[1768672909810,0.01049141,95316.0,95313.0,1e-08]
[1768672910032,0.01049108,95319.0,95314.0,0.01049163]
[1768672910247,0.01049218,95321.0,95318.0,0.01049119]
[1768672910473,0.20977549,95341.0,95320.0,0.01049097]
[1768672910474,0.01049042,95325.0,95320.0,0.01049097]
[1768672910914,0.01049163,95326.0,95322.0,0.01049075]
[1768672911155,0.01049163,95326.0,95279.0,0.07524008]
[1768672911156,0.01049163,95326.0,95316.0,0.01049141]
[1768672911377,0.01049163,95326.0,95316.0,0.01061525]
[1768672912405,0.01049086,95321.0,95318.0,0.01049119]
[1768672912993,0.01049086,95321.0,95316.0,0.00012384]
[1768672912994,0.23435168,95318.0,95316.0,0.00012384]
[1768672913200,0.01049108,95319.0,95316.0,0.00012384]
[1768672913403,0.01049097,95320.0,95316.0,0.01061525]
[1768672913599,0.01049108,95319.0,95316.0,0.00012384]
[1768672914340,0.01049097,95320.0,95316.0,0.00012384]
[1768672914565,0.01049097,95320.0,95317.0,0.0104913]
[1768672914769,0.01049108,95319.0,95316.0,0.00012384]
[1768672915158,0.01049097,95320.0,95316.0,0.01061525]
[1768672915363,0.01049097,95320.0,95317.0,0.0104913]
[1768672915602,0.01049086,95321.0,95318.0,0.01049119]
[1768672916141,0.01049097,95320.0,95317.0,0.0104913]
[1768672916350,0.01049097,95320.0,95316.0,0.01061525]
[1768672917021,0.01049108,95319.0,95316.0,0.01061525]
[1768672917724,0.01049108,95319.0,95316.0,0.00012384]
[1768672918061,0.01049086,95321.0,95317.0,0.0104913]
[1768672918274,0.01049075,95322.0,95319.0,0.01049108]
[1768672918480,0.01049163,95326.0,95322.0,0.01049075]
[1768672918723,0.01049042,95325.0,95322.0,0.01049075]
[1768672918908,0.01049053,95324.0,95321.0,0.01049086]
[1768672919293,0.01049031,95326.0,95321.0,0.01049086]
[1768672919718,0.03147876,95324.0,95321.0,0.06294497]
[1768672919916,0.03147876,95324.0,95321.0,0.01049086]
[1768672921164,0.03147876,95324.0,95322.0,0.05245376]
[1768672921369,0.03147876,95324.0,95321.0,0.01049086]
[1768672921750,0.01049097,95320.0,95316.0,0.01061525]
[1768672922060,0.24484243,95322.0,95318.0,0.01049119]
[1768672922258,0.01049108,95319.0,95316.0,0.01061525]
[1768672922671,0.01049108,95319.0,95316.0,0.00012384]
[1768672923228,0.06294661,95319.0,95316.0,0.00012384]
[1768672923694,0.05245605,95318.0,95316.0,0.00012384]
[1768672923908,0.01049086,95321.0,95317.0,0.0104913]
[1768672924114,0.01049075,95322.0,95318.0,0.01049119]
[1768672924539,0.04196929,95324.0,95319.0,0.01049108]
[1768672925174,0.04196929,95324.0,95318.0,0.01049119]
[1768672925995,0.09442197,95324.0,95318.0,0.06294709]
[1768672926370,0.01049064,95323.0,95319.0,0.01049108]
[1768672927029,0.01049075,95322.0,95319.0,0.01049108]
[1768672927825,0.01049075,95322.0,95318.0,0.01049119]
[1768672928039,0.01049086,95321.0,95318.0,0.01049119]
[1768672930549,0.01049086,95323.0,95320.0,0.01049097]
[1768672930774,0.01049086,95323.0,95321.0,0.06294476]
[1768672930947,0.01049086,95323.0,95322.0,0.05245378]
[1768672931591,0.12760094,95328.0,95325.0,0.01049042]
[1768672931785,0.36195262,95328.0,95325.0,0.0102929]
[1768672931960,0.03147876,95326.0,95325.0,0.05225445]
[1768672932160,0.03147876,95326.0,95325.0,0.01049042]
[1768672932344,0.36195262,95328.0,95325.0,0.01049042]
[1768672932555,0.03147876,95327.0,95325.0,0.01049042]
[1768672933329,0.03147876,95327.0,95323.0,0.06294364]
[1768672933536,0.03147876,95327.0,95323.0,0.01049064]
[1768672933743,0.12712,95329.0,95328.0,0.06294056]
[1768672933922,0.12712,95329.0,95328.0,0.06289525]
[1768672934138,0.12712,95329.0,95328.0,0.01044478]
[1768672935653,0.12712,95329.0,95328.0,0.06289526]
[1768672935971,0.12712,95329.0,95328.0,0.01044478]
[1768672937266,0.12712,95329.0,95326.0,0.06294165]
[1768672937874,0.12712,95329.0,95326.0,0.01049031]
[1768672939321,0.12712,95329.0,95326.0,0.010445]
[1768672939724,0.12712,95329.0,95327.0,0.05245103]
[1768672939951,0.12712,95329.0,95328.0,0.05245048]
[1768672940724,0.12712,95329.0,95326.0,0.06289611]
[1768672940923,0.12712,95329.0,95326.0,0.010445]
[1768672941568,0.01048965,95332.0,95328.0,0.01049009]
[1768672942215,0.01048965,95332.0,95326.0,0.010445]
[1768672942216,0.06293863,95331.0,95326.0,0.010445]
[1768672943020,0.01048998,95329.0,95326.0,0.010445]
[1768672944036,0.01048976,95331.0,95327.0,0.0104902]
[1768672944265,0.01048965,95332.0,95329.0,0.01048998]
[1768672944835,0.01048965,95332.0,95328.0,0.01049009]
[1768672945244,0.01048976,95331.0,95327.0,0.0104902]
[1768672946088,0.01048976,95331.0,95327.0,0.01044489]
[1768672946291,0.01048965,95332.0,95328.0,0.01049009]
[1768672946901,0.01048965,95332.0,95329.0,0.01048998]
[1768672947482,0.06293799,95332.0,95328.0,0.01049009]
[1768672947694,0.01048976,95331.0,95328.0,0.01049009]
[1768672948721,0.01048965,95332.0,95329.0,0.01048998]
[1768672949983,0.01048965,95332.0,95328.0,0.01049009]
[1768672950395,0.01048965,95332.0,95329.0,0.01048998]
[1768672950594,0.35124247,95334.0,95330.0,0.01048987]
[1768672950817,0.01048954,95333.0,95329.0,0.01048998]
[1768672951016,0.3617319,95334.0,95330.0,0.01048987]
[1768672951379,0.01048954,95333.0,95330.0,0.01048987]
[1768672951945,0.01048954,95333.0,95329.0,0.01048998]
[1768672952151,0.01048965,95332.0,95329.0,0.01048998]
[1768672954395,0.13764954,95333.0,95329.0,0.01048998]
[1768672954625,0.12716,95333.0,95330.0,0.01048987]
[1768672954830,0.3617719,95334.0,95331.0,0.01048976]
[1768672955035,0.35128247,95334.0,95331.0,0.01048976]
[1768672955894,0.35128247,95334.0,95330.0,0.01048987]
[1768672956102,0.2346119,95334.0,95330.0,0.01048987]
[1768672956304,0.3617719,95334.0,95330.0,0.01048987]
[1768672956733,0.41421918,95334.0,95330.0,0.01048987]
[1768672956949,0.01048954,95333.0,95330.0,0.01048987]
[1768672957388,0.01048954,95333.0,95330.0,0.0055028]
[1768672958214,0.06293738,95333.0,95329.0,0.01048998]
[1768672959342,0.01048954,95333.0,95329.0,0.01048998]
[1768672959805,0.01049053,95324.0,95316.0,0.01110972]
[1768672960011,0.01048921,95336.0,95331.0,0.01048976]
[1768672960225,0.01048855,95342.0,95334.0,0.01048943]
[1768672960449,0.01064411,95356.0,95346.0,0.01048811]
[1768672960660,0.05243563,95355.0,95348.0,0.22220597]
[1768672960861,0.01064411,95356.0,95347.0,0.010488]
[1768672960862,0.01048734,95353.0,95350.0,0.21171808]
[1768672961069,0.01048734,95353.0,95347.0,0.010488]
[1768672961070,0.01048756,95351.0,95348.0,0.21171808]
[1768672961516,0.05243893,95349.0,95348.0,0.21171808]
[1768672962177,0.05243838,95350.0,95348.0,0.21171808]
[1768672962387,0.01062916,95351.0,95348.0,0.21171808]
[1768672962603,0.05243893,95349.0,95348.0,0.21171808]
[1768672963029,0.05243893,95349.0,95342.0,0.01048855]
[1768672963236,0.01048822,95345.0,95341.0,0.21171808]
[1768672964214,0.01048833,95344.0,95341.0,0.21171808]
[1768672964422,0.06293022,95344.0,95341.0,0.21171808]
[1768672965665,0.01048899,95338.0,95334.0,0.01048943]
[1768672966033,0.01048899,95338.0,95335.0,0.21171808]
[1768672966185,0.06293282,95340.0,95335.0,0.2222074]
[1768672966391,0.06293339,95339.0,95335.0,0.21171808]
[1768672966812,0.01048888,95339.0,95335.0,0.21171808]
[1768672967016,0.01048899,95338.0,95335.0,0.21171808]
[1768672967358,0.01048888,95339.0,95335.0,0.2222074]
[1768672967900,0.01048899,95338.0,95334.0,0.01048943]
[1768672968718,0.01048866,95341.0,95335.0,0.06293549]
[1768672968924,0.01048844,95343.0,95338.0,0.01048899]
[1768672969126,0.01048855,95342.0,95338.0,0.01048899]
[1768672970508,0.01048833,95344.0,95339.0,0.01048888]
[1768672971056,0.01048833,95344.0,95339.0,0.06293331]
[1768672972414,0.010488,95347.0,95339.0,0.06293331]
[1768672972415,0.01048811,95346.0,95340.0,0.01048877]
[1768672972603,0.0629288,95346.0,95342.0,0.01048855]
[1768672972811,0.01048822,95345.0,95340.0,0.06293259]
[1768672973572,0.01048822,95345.0,95340.0,0.01048877]
[1768672973971,0.01048822,95345.0,95340.0,0.06293225]
[1768672974212,0.01048822,95345.0,95341.0,0.01048866]
[1768672974418,0.01048789,95348.0,95342.0,0.06293101]
[1768672974782,0.01048668,95359.0,95354.0,0.21578523]
[1768672974959,0.01048668,95359.0,95355.0,0.01048712]
[1768672975172,0.01048657,95360.0,95356.0,0.01048701]
[1768672975379,0.01048657,95360.0,95357.0,0.0104869]
[1768672975583,0.01048646,95361.0,95357.0,0.0104869]
[1768672975790,0.01048657,95360.0,95357.0,0.0104869]
[1768672976028,0.01048657,95360.0,95355.0,0.05243558]
[1768672976228,0.01048657,95360.0,95356.0,0.01048701]
[1768672976724,0.01048646,95361.0,95357.0,0.0104869]
[1768672976928,0.01048635,95362.0,95357.0,0.0104869]
[1768672977162,0.06291883,95361.0,95356.0,0.01048701]
[1768672977587,0.01048657,95360.0,95356.0,0.01048701]
[1768672980293,0.01048646,95361.0,95357.0,0.0104869]
[1768672980498,0.01048646,95361.0,95358.0,0.01048679]
[1768672980931,0.01048635,95362.0,95358.0,0.01048679]
[1768672981422,0.01048646,95361.0,95358.0,0.01048679]
[1768672981615,0.01048646,95361.0,95357.0,0.0104869]
[1768672981795,0.01048657,95360.0,95357.0,0.0104869]
[1768672982294,0.01048646,95361.0,95357.0,0.0104869]
[1768672982985,0.01048646,95361.0,95358.0,0.01048679]
[1768672983188,0.01048646,95361.0,95357.0,0.0104869]
[1768672984052,0.01048657,95360.0,95356.0,0.01048701]
[1768672984411,0.01048657,95360.0,95357.0,0.0104869]
[1768672984696,0.01048646,95361.0,95357.0,0.0104869]
[1768672985379,0.01048657,95360.0,95356.0,0.01048701]
[1768672986352,0.01048657,95360.0,95356.0,0.06292205]
[1768672986556,0.01048657,95360.0,95357.0,0.0104869]
[1768672988371,0.01048635,95362.0,95358.0,0.01048679]
[1768672989406,0.01048635,95362.0,95359.0,0.01048668]
[1768672989769,0.01048635,95362.0,95358.0,0.01048679]
[1768672990407,0.01048635,95362.0,95357.0,0.062921]
[1768672991211,0.01048635,95362.0,95358.0,0.01048679]
[1768672991389,0.06291833,95362.0,95358.0,0.01048679]
[1768672992120,0.01048635,95362.0,95358.0,0.01048679]
[1768672992550,0.0629182,95362.0,95358.0,0.01048679]
[1768672992865,0.01048635,95362.0,95358.0,0.01048679]
[1768672994106,0.01048646,95361.0,95357.0,0.0104869]
[1768672994298,0.01048635,95362.0,95358.0,0.01048679]
[1768672994520,0.01048624,95363.0,95360.0,0.01048657]
[1768672994921,0.01039563,95363.0,95360.0,0.01048657]
[1768672995174,0.0001571,95365.0,95360.0,0.01048657]
[1768672995380,0.00013084,95365.0,95363.0,0.05243123]
[1768672995801,0.00013084,95365.0,95362.0,0.06291799]
[1768672995999,0.00013084,95365.0,95362.0,0.01048635]
[1768672996213,0.00013084,95365.0,95362.0,0.06291798]
[1768672997052,4.021e-05,95365.0,95361.0,0.06291876]
[1768672997274,4.021e-05,95365.0,95362.0,0.01048635]
[1768672998582,0.01052623,95365.0,95361.0,0.01048646]
[1768672999597,4.021e-05,95365.0,95362.0,0.01048635]
[1768673000351,0.06295637,95365.0,95361.0,0.01048646]
[1768673000576,0.01052623,95365.0,95361.0,0.01048646]
[1768673000953,0.01052623,95365.0,95362.0,0.01048635]
[1768673001158,0.01034775,95365.0,95362.0,0.01048635]
[1768673001361,0.01048591,95366.0,95362.0,0.01048635]
[1768673001586,0.01048602,95365.0,95361.0,0.01048646]
[1768673002352,0.01048602,95365.0,95361.0,0.01009174]
[1768673002576,0.01048602,95365.0,95361.0,0.06252397]
[1768673002781,0.01048602,95365.0,95362.0,0.01048635]
[1768673003239,0.01048613,95364.0,95360.0,0.01048657]
[1768673003434,0.01048613,95364.0,95361.0,0.01048646]
[1768673003758,0.01048602,95365.0,95361.0,0.06291876]
[1768673003931,0.01048591,95366.0,95362.0,0.01048635]
[1768673004518,0.06291552,95366.0,95362.0,0.01048635]
[1768673005361,0.01048613,95364.0,95360.0,0.01048657]
[1768673005705,0.06291683,95364.0,95360.0,0.01048657]
[1768673006635,0.01048602,95365.0,95360.0,0.01048657]
[1768673006817,0.01048624,95363.0,95359.0,0.01048668]
[1768673007263,0.01048635,95362.0,95357.0,0.0104869]
[1768673007672,0.01048635,95362.0,95357.0,0.06292142]
[1768673007881,0.06292192,95357.0,95351.0,0.01048756]
[1768673008180,0.0104869,95357.0,95354.0,0.20536236]
[1768673008446,0.01048679,95358.0,95354.0,0.01055159]
[1768673008654,0.01039616,95358.0,95355.0,0.01048712]
[1768673008853,0.01039616,95358.0,95354.0,0.01055159]
[1768673010396,0.0102149,95358.0,95354.0,0.01055159]
[1768673010617,0.0104869,95357.0,95354.0,6.436e-05]
[1768673011052,0.0104869,95357.0,95354.0,0.01055159]
[1768673012028,0.0102149,95358.0,95354.0,0.01055159]
[1768673012460,0.0104869,95357.0,95354.0,0.01055159]
[1768673015541,0.0102149,95358.0,95355.0,0.01048712]
[1768673015752,0.0102149,95358.0,95355.0,0.01028975]
[1768673016582,0.0102149,95358.0,95355.0,0.01009239]
[1768673017037,0.0102149,95358.0,95355.0,0.00989504]
[1768673017221,0.0102149,95358.0,95355.0,0.00969771]
[1768673017988,0.01048668,95359.0,95355.0,0.00969771]
[1768673018195,0.01039605,95359.0,95355.0,0.00969771]
[1768673020495,0.01039605,95359.0,95355.0,0.06213331]
[1768673020921,0.01039605,95359.0,95355.0,0.00969771]
[1768673021123,0.01039605,95359.0,95355.0,0.00950038]
[1768673021519,0.01039605,95359.0,95356.0,0.01048701]
[1768673021692,0.01039605,95359.0,95356.0,0.01028969]
[1768673023152,0.0104869,95357.0,95354.0,6.436e-05]
[1768673023588,0.0104869,95357.0,95354.0,0.01055159]
[1768673023791,0.0104869,95357.0,95354.0,0.01035436]
[1768673023995,0.01048679,95358.0,95354.0,0.06279031]
[1768673026126,0.01048679,95358.0,95354.0,0.01035436]
[1768673030375,0.01048679,95358.0,95354.0,0.06279049]
[1768673031963,0.01048679,95358.0,95355.0,0.01048712]
[1768673033422,0.13428389,95356.0,95347.0,0.0001942]
[1768673033625,0.01048767,95350.0,95347.0,0.0001942]
[1768673034669,0.01048756,95351.0,95347.0,0.0106822]
[1768673035095,0.01048767,95350.0,95347.0,0.0001942]
[1768673035314,0.01048756,95351.0,95347.0,0.0106822]
[1768673036589,0.01048767,95350.0,95347.0,0.0001942]
[1768673036791,0.01048756,95351.0,95347.0,0.0106822]
[1768673036999,0.01048767,95350.0,95347.0,0.0001942]
[1768673038642,0.06292606,95350.0,95347.0,0.0001942]
[1768673039585,0.01048767,95350.0,95347.0,0.0001942]
[1768673040980,0.01048712,95355.0,95349.0,0.01048778]
[1768673041198,0.01048723,95354.0,95350.0,0.01048767]
[1768673042013,0.01048734,95353.0,95349.0,0.01048778]
[1768673042241,0.01048745,95352.0,95348.0,0.01048789]
[1768673042641,0.01048646,95361.0,95355.0,0.01048712]
[1768673042942,0.01048657,95360.0,95356.0,0.13087878]
[1768673043154,0.01053377,95360.0,95356.0,0.13087878]
[1768673044080,0.05243295,95360.0,95356.0,0.13087878]
[1768673044282,0.20970624,95372.0,95360.0,0.01048657]
[1768673044548,0.01048624,95363.0,95360.0,0.14073541]
[1768673044713,0.05242963,95366.0,95360.0,0.14073541]
[1768673044944,0.05242963,95366.0,95360.0,0.13087878]
[1768673045156,0.05242963,95366.0,95360.0,0.14136535]
[1768673045157,0.01048613,95364.0,95360.0,0.14136535]
[1768673045303,0.01048624,95363.0,95360.0,0.13087878]
[1768673050854,0.01048635,95362.0,95358.0,0.01048679]
[1768673051061,0.01048679,95358.0,95354.0,0.14136601]
[1768673051685,0.01048679,95358.0,95355.0,0.01048712]
[1768673053185,0.01048657,95360.0,95356.0,0.01048701]
[1768673053738,0.06291951,95360.0,95356.0,0.01048701]
[1768673053937,0.01048668,95359.0,95355.0,0.01048712]
[1768673054146,0.0104869,95357.0,95354.0,0.13087878]
[1768673054364,0.06292169,95357.0,95354.0,0.13087878]
[1768673055147,0.01048668,95359.0,95354.0,0.18331495]
[1768673055355,0.01048668,95359.0,95355.0,0.01048712]
[1768673055599,0.0104869,95357.0,95354.0,0.01048723]
[1768673055808,0.0104869,95357.0,95353.0,0.01048734]
[1768673056298,0.01048701,95356.0,95353.0,0.01048734]
[1768673057291,0.01048646,95361.0,95354.0,0.01048723]
[1768673057615,0.01048657,95360.0,95357.0,0.0104869]
[1768673058423,0.01048646,95361.0,95357.0,0.06292143]
[1768673058552,0.01048646,95361.0,95358.0,0.01048679]
[1768673059211,0.01048624,95363.0,95359.0,0.01048668]
[1768673059415,0.01048624,95363.0,95360.0,0.01048657]
[1768673061134,0.01048591,95366.0,95361.0,0.01048646]
[1768673061350,0.01048591,95366.0,95362.0,0.05243157]
[1768673061699,0.0104858,95367.0,95363.0,0.01048624]
[1768673061904,0.0104858,95367.0,95364.0,0.01048613]
[1768673062147,0.06291511,95367.0,95363.0,0.01048624]
[1768673062348,0.01048602,95365.0,95361.0,0.14136524]
[1768673062507,0.0104858,95367.0,95363.0,0.01048624]
[1768673062703,0.06291549,95366.0,95362.0,0.01048635]
[1768673063170,0.01048591,95366.0,95362.0,0.01048635]
[1768673063568,0.01048591,95366.0,95363.0,0.01048624]
[1768673067461,0.01039527,95366.0,95363.0,0.01048624]
[1768673071181,0.01048613,95364.0,95360.0,0.06291927]
[1768673071610,0.01048624,95363.0,95359.0,0.01048668]
[1768673072027,0.06291795,95363.0,95359.0,0.01048668]
[1768673072239,0.0629182,95362.0,95357.0,0.16168886]
[1768673073135,0.01048646,95361.0,95357.0,0.10925472]
[1768673073540,0.01048646,95361.0,95358.0,0.01048679]
[1768673074140,0.01048646,95361.0,95357.0,0.10925472]
[1768673074509,0.06291881,95361.0,95357.0,0.10925472]
[1768673074661,0.01048646,95361.0,95357.0,0.10925472]
[1768673076835,0.01048646,95361.0,95358.0,0.01048679]
[1768673077833,0.01048635,95362.0,95358.0,0.01048679]
[1768673078040,0.01048646,95361.0,95358.0,0.01048679]
[1768673078296,0.01048657,95360.0,95357.0,0.10925472]
[1768673079286,0.01048657,95360.0,95357.0,0.10905795]
[1768673079498,0.01048657,95360.0,95357.0,0.10886118]
[1768673082145,0.01048646,95361.0,95358.0,0.01048679]
[1768673083405,0.06291884,95361.0,95357.0,0.10886118]
[1768673083619,0.01048646,95361.0,95357.0,0.16129567]
[1768673083836,0.01048646,95361.0,95358.0,0.01048679]
[1768673084076,0.01048646,95361.0,95358.0,0.01029004]
[1768673084545,0.06291912,95361.0,95357.0,0.01009336]
[1768673084773,0.01048646,95361.0,95357.0,0.01009336]
[1768673085514,0.01048646,95361.0,95358.0,0.01048679]
[1768673086002,0.06291879,95361.0,95358.0,0.01048679]
[1768673086208,0.01048646,95361.0,95358.0,0.01048679]
[1768673086423,0.01048646,95361.0,95358.0,0.01029005]
[1768673086593,0.01048635,95362.0,95358.0,0.06252722]
[1768673086803,0.01048646,95361.0,95358.0,0.01009332]
[1768673088796,0.01048635,95362.0,95358.0,0.06252723]
[1768673089218,0.01048635,95362.0,95356.0,0.17951464]
[1768673089219,0.01048481,95376.0,95371.0,0.01048536]
[1768673089558,0.01048481,95376.0,95369.0,0.01048558]
[1768673089559,0.01048492,95375.0,95369.0,0.01048558]
[1768673089761,0.01048481,95376.0,95371.0,0.01048536]
[1768673089963,0.01048503,95374.0,95369.0,0.01048558]
[1768673090185,0.01048492,95375.0,95370.0,0.01048547]
[1768673090392,0.00022037,95377.0,95374.0,0.01048503]
[1768673090767,0.00022037,95377.0,95375.0,0.05242459]
[1768673091172,0.0004,95378.0,95376.0,0.05242408]
[1768673091375,0.01088371,95386.0,95381.0,0.01048426]
[1768673091573,0.00060489,95384.0,95381.0,0.01048426]
[1768673091932,0.01108882,95384.0,95381.0,0.01048426]
[1768673092112,0.01048415,95382.0,95378.0,0.01048459]
[1768673092324,0.01108882,95384.0,95378.0,0.01048459]
[1768673092325,0.01108882,95384.0,95380.0,0.01048437]
[1768673092938,0.01048404,95383.0,95380.0,0.01048437]
[1768673094866,0.01048415,95382.0,95378.0,0.01048459]
[1768673095310,0.01048415,95382.0,95379.0,0.01048448]
[1768673095548,0.01048404,95383.0,95379.0,0.01048448]
[1768673095748,0.05242133,95382.0,95377.0,0.0104847]
[1768673095973,0.01048437,95380.0,95376.0,0.01048481]
[1768673096409,0.01048448,95379.0,95373.0,0.01048514]
[1768673096628,0.0104847,95377.0,95374.0,0.01048503]
[1768673096836,0.01048448,95379.0,95375.0,0.01048492]
[1768673097010,0.01048437,95380.0,95377.0,0.0104847]
[1768673098334,0.01048437,95380.0,95376.0,0.01048481]
[1768673099964,0.01048437,95380.0,95376.0,0.06290884]
[1768673100186,0.01048448,95379.0,95375.0,0.01048492]
[1768673100390,0.01048459,95378.0,95373.0,0.01048514]
[1768673100620,0.06290934,95376.0,95371.0,0.01048536]
[1768673100837,0.01048481,95376.0,95372.0,0.01048525]
[1768673101064,0.0104847,95377.0,95373.0,0.06291074]
[1768673101280,0.01048459,95378.0,95374.0,0.06291]
[1768673101481,0.06290761,95378.0,95374.0,0.01048503]
[1768673101700,0.01048459,95378.0,95374.0,0.01048503]